bitfinex/quotes_BTCUSD_20241110
["timestamp","ask_amount","ask_price","bid_price","bid_amount"]
[1731272156550,0.06065995,79231.0,79228.0,0.126216]
[1731272156764,0.06065995,79231.0,79224.0,0.2208965]
[1731272156765,0.06065995,79231.0,79229.0,0.17324768]
[1731272156969,0.06065995,79231.0,79230.0,0.126214]
[1731272157092,0.002,79239.0,79233.0,0.15269634]
[1731272157293,0.07367745,79238.0,79234.0,0.0025238]
[1731272157543,0.07367745,79238.0,79235.0,0.0353613]
[1731272157740,0.128205,79236.0,79235.0,0.0353613]
[1731272157984,0.07567745,79236.0,79235.0,0.0353613]
[1731272158196,0.07367745,79237.0,79235.0,0.0353613]
[1731272158322,0.03679457,79238.0,79235.0,0.0353613]
[1731272158538,0.03679457,79238.0,79236.0,0.04931165]
[1731272158955,0.03679457,79238.0,79237.0,0.31533974]
[1731272159168,0.000715,79240.0,79239.0,0.1262]
[1731272159368,0.000715,79240.0,79239.0,0.25466579]
[1731272160137,0.000715,79240.0,79236.0,0.04678779]
[1731272160138,0.126915,79240.0,79236.0,0.04678779]
[1731272160265,0.000715,79240.0,79237.0,0.31786353]
[1731272160476,0.000715,79240.0,79237.0,0.12594221]
[1731272160698,0.002,79239.0,79233.0,0.15269634]
[1731272160889,0.128213,79231.0,79210.0,0.2208965]
[1731272161114,0.126213,79231.0,79210.0,0.2208965]
[1731272161270,0.126213,79231.0,79217.0,0.41029403]
[1731272161472,0.126213,79231.0,79217.0,0.53652803]
[1731272161725,0.126213,79231.0,79218.0,0.126233]
[1731272161956,0.252427,79231.0,79217.0,0.41029403]
[1731272162177,0.002,79234.0,79218.0,0.19221951]
[1731272162345,0.002,79234.0,79230.0,0.02543061]
[1731272162346,0.126213,79231.0,79230.0,0.02543061]
[1731272162621,0.126232,79219.0,79218.0,0.0662773]
[1731272162788,0.128248,79209.0,79208.0,0.18939753]
[1731272162990,0.133248,79209.0,79208.0,0.18939753]
[1731272163225,0.133248,79209.0,79194.0,0.18939753]
[1731272163226,0.12769717,79195.0,79194.0,0.18939753]
[1731272164198,0.126275,79192.0,79191.0,0.02502895]
[1731272165364,0.00142717,79193.0,79178.0,0.18939753]
[1731272165578,0.25255,79192.0,79186.0,0.18939753]
[1731272165945,0.25255,79192.0,79187.0,0.03156875]
[1731272166163,0.00142717,79197.0,79189.0,0.02494559]
[1731272166519,0.00142717,79204.0,79190.0,0.31786504]
[1731272166833,0.126261,79201.0,79190.0,0.31533974]
[1731272167241,0.252512,79204.0,79191.0,0.126276]
[1731272167447,0.00142717,79195.0,79189.0,0.02494559]
[1731272167604,0.252547,79193.0,79190.0,0.18939753]
[1731272167807,0.252547,79193.0,79189.0,0.02494559]
[1731272168031,0.126296,79179.0,79153.0,0.079]
[1731272168239,0.126296,79179.0,79160.0,0.252652]
[1731272168455,0.00142717,79186.0,79160.0,0.252652]
[1731272168689,0.126297,79178.0,79177.0,0.18939753]
[1731272169059,0.126297,79178.0,79177.0,0.02570891]
[1731272169642,0.00142717,79188.0,79177.0,0.02570891]
[1731272169643,0.252566,79187.0,79177.0,0.15165112]
[1731272169854,0.126288,79185.0,79178.0,0.01516511]
[1731272170245,0.252568,79187.0,79178.0,0.20456264]
[1731272170433,0.126291,79182.0,79178.0,0.01516511]
[1731272170858,0.248568,79187.0,79179.0,0.05457222]
[1731272171050,0.126288,79184.0,79179.0,0.05457222]
[1731272171259,0.00142717,79188.0,79179.0,0.05457222]
[1731272171485,0.00142717,79178.0,79177.0,0.02570891]
[1731272171763,0.00142717,79178.0,79169.0,0.18939753]
[1731272171764,0.257573,79185.0,79170.0,0.00252575]
[1731272172093,0.00142717,79188.0,79177.0,0.21477325]
[1731272172242,0.12772317,79179.0,79178.0,0.00252562]
[1731272172424,0.126297,79178.0,79177.0,0.02537572]
[1731272172606,0.12772417,79178.0,79177.0,0.02537572]
[1731272172807,0.126323,79162.0,79155.0,0.226333]
[1731272173009,0.126323,79162.0,79161.0,0.31533974]
[1731272173251,0.126321,79164.0,79161.0,0.31533974]
[1731272173425,0.005,79183.0,79175.0,0.126302]
[1731272173652,0.00142717,79164.0,79162.0,0.15747618]
[1731272173854,0.00142717,79178.0,79166.0,0.126315]
[1731272174106,0.00142717,79178.0,79167.0,0.25225621]
[1731272174107,0.126304,79174.0,79167.0,0.25225621]
[1731272174290,0.00142717,79178.0,79167.0,0.25225621]
[1731272174291,0.00142717,79178.0,79168.0,0.07258277]
[1731272174501,0.005,79183.0,79168.0,0.07258277]
[1731272174714,0.005,79183.0,79167.0,0.12594221]
[1731272174873,0.005,79183.0,79163.0,0.18939753]
[1731272175063,0.00142717,79164.0,79163.0,0.31533974]
[1731272175268,0.126313,79168.0,79163.0,0.31533974]
[1731272175620,0.01,79183.0,79163.0,0.31533974]
[1731272175621,0.252595,79178.0,79165.0,0.252636]
[1731272175823,0.252593,79179.0,79164.0,0.04731967]
[1731272175824,0.252622,79170.0,79164.0,0.04731967]
[1731272176115,0.126309,79171.0,79166.0,0.18939753]
[1731272176252,0.126309,79171.0,79167.0,0.12594221]
[1731272176458,0.126309,79171.0,79167.0,0.19789058]
[1731272177121,0.00142717,79178.0,79167.0,0.07194837]
[1731272177339,0.00142717,79178.0,79163.0,0.02517895]
[1731272177340,0.126312,79169.0,79163.0,0.15149895]
[1731272177527,0.00142717,79178.0,79163.0,0.02517895]
[1731272177761,0.12632,79164.0,79163.0,0.02517895]
[1731272178657,0.252621,79170.0,79163.0,0.02517895]
[1731272178848,0.12632,79164.0,79163.0,0.02517895]
[1731272179048,0.126331,79157.0,79156.0,0.16181701]
[1731272179250,0.00142717,79162.0,79156.0,0.20285844]
[1731272179452,0.126331,79157.0,79156.0,0.04104143]
[1731272179829,0.126328,79159.0,79156.0,0.04104143]
[1731272180043,0.252652,79160.0,79156.0,0.04104143]
[1731272180250,0.126327,79160.0,79157.0,0.03563812]
[1731272180650,0.252643,79163.0,79156.0,0.02471693]
[1731272180849,0.252646,79162.0,79156.0,0.02471693]
[1731272181240,0.05499662,79167.0,79156.0,0.02471693]
[1731272181241,0.12775817,79157.0,79156.0,0.02471693]
[1731272181437,0.26377441,79157.0,79156.0,0.02471693]
[1731272181631,0.33710324,79157.0,79156.0,0.02471693]
[1731272181864,0.33710324,79157.0,79150.0,0.001428]
[1731272181865,0.12634,79151.0,79150.0,0.001428]
[1731272181981,0.18160665,79151.0,79150.0,0.001428]
[1731272182181,0.35400242,79151.0,79150.0,0.001428]
[1731272182383,0.36383453,79151.0,79150.0,0.001428]
[1731272182634,0.3652617,79151.0,79150.0,0.02718257]
[1731272182862,0.27304991,79151.0,79150.0,0.02718257]
[1731272183015,0.27162274,79151.0,79150.0,0.02718257]
[1731272183826,0.27304991,79151.0,79150.0,0.02718257]
[1731272184168,0.27162274,79151.0,79150.0,0.02718257]
[1731272184694,0.26234138,79151.0,79150.0,0.02718257]
[1731272185063,0.26804583,79151.0,79150.0,0.02718257]
[1731272185286,0.36876179,79151.0,79150.0,0.02718257]
[1731272185437,0.25876855,79151.0,79150.0,0.02718257]
[1731272186084,0.13600138,79151.0,79150.0,0.02718257]
[1731272186237,0.13600138,79151.0,79150.0,0.22426902]
[1731272186440,0.13600138,79151.0,79150.0,0.32263357]
[1731272188028,0.22861375,79151.0,79150.0,0.02539855]
[1731272188229,0.22861375,79151.0,79136.0,0.252726]
[1731272188230,0.126352,79144.0,79141.0,0.18939753]
[1731272188379,0.22936236,79143.0,79142.0,0.12594221]
[1731272188578,0.13674648,79143.0,79142.0,0.12594221]
[1731272188811,0.13674648,79143.0,79142.0,0.20040705]
[1731272189013,0.13674648,79143.0,79142.0,0.32676205]
[1731272189535,0.13674648,79143.0,79142.0,0.20124405]
[1731272189939,0.13674648,79143.0,79142.0,0.32759905]
[1731272190253,0.13674648,79143.0,79142.0,0.20124405]
[1731272190461,0.26309948,79143.0,79142.0,0.15147994]
[1731272191044,0.13674648,79143.0,79142.0,0.15147994]
[1731272191245,0.26309948,79143.0,79142.0,0.02553773]
[1731272191829,0.13674648,79143.0,79142.0,0.02553773]
[1731272192213,0.14606973,79143.0,79142.0,0.02553773]
[1731272192704,0.14621295,79143.0,79142.0,0.02553773]
[1731272193038,0.11125648,79155.0,79143.0,0.023]
[1731272193245,0.126322,79163.0,79158.0,0.126328]
[1731272193454,0.252625,79169.0,79147.0,0.02545957]
[1731272193653,0.01635128,79171.0,79156.0,0.126331]
[1731272193879,0.01492411,79172.0,79157.0,0.12594221]
[1731272194079,0.126307,79172.0,79161.0,0.252649]
[1731272194286,0.126307,79172.0,79163.0,0.252643]
[1731272194513,0.126307,79172.0,79170.0,0.02477509]
[1731272194920,0.126308,79171.0,79170.0,0.02477509]
[1731272195443,0.01492411,79176.0,79170.0,0.02477509]
[1731272195620,0.00142717,79173.0,79171.0,0.02774031]
[1731272195860,0.001674,79177.0,79172.0,0.18939753]
[1731272196056,0.0371351,79176.0,79173.0,0.252611]
[1731272196257,0.0371351,79176.0,79172.0,0.53846798]
[1731272196258,0.00142717,79211.0,79177.0,0.00057283]
[1731272196541,0.12627,79196.0,79181.0,0.12594221]
[1731272196778,0.126268,79197.0,79183.0,0.18939753]
[1731272196949,0.126262,79200.0,79184.0,0.18273488]
[1731272197133,0.252509,79206.0,79196.0,0.126268]
[1731272197491,0.126254,79205.0,79198.0,0.126265]
[1731272197746,0.00142717,79212.0,79195.0,0.02479074]
[1731272197966,0.005,79211.0,79196.0,0.12594221]
[1731272198197,0.00142717,79203.0,79195.0,0.02479074]
[1731272198421,0.00142717,79196.0,79195.0,0.02479074]
[1731272198622,0.126269,79196.0,79195.0,0.02479074]
[1731272199262,0.12769617,79196.0,79195.0,0.02479074]
[1731272199506,0.01,79183.0,79143.0,0.26589753]
[1731272199702,0.126313,79168.0,79167.0,0.18939753]
[1731272200175,0.25402417,79178.0,79167.0,0.18939753]
[1731272200176,0.00142717,79178.0,79167.0,0.18939753]
[1731272200454,0.12774017,79168.0,79167.0,0.02467459]
[1731272200669,0.126313,79168.0,79167.0,0.02467459]
[1731272201311,0.12774017,79168.0,79167.0,0.02467459]
[1731272202082,0.252612,79173.0,79151.0,0.18939753]
[1731272202083,0.00142717,79160.0,79151.0,0.18939753]
[1731272202344,0.25263,79167.0,79159.0,0.18939753]
[1731272202514,0.00142717,79168.0,79152.0,0.14488196]
[1731272202515,0.252656,79159.0,79152.0,0.14488196]
[1731272202906,0.378984,79159.0,79158.0,0.02475363]
[1731272203290,0.00142717,79167.0,79158.0,0.02475363]
[1731272203690,0.252633,79166.0,79158.0,0.02475363]
[1731272203924,0.252636,79165.0,79159.0,0.01763505]
[1731272204125,0.001676,79168.0,79159.0,0.01510876]
[1731272204396,0.126328,79159.0,79158.0,0.02475363]
[1731272205298,0.126325,79161.0,79158.0,0.02475363]
[1731272205514,0.126327,79160.0,79158.0,0.02475363]
[1731272205853,0.126328,79159.0,79158.0,0.02475363]
[1731272206582,0.126328,79159.0,79158.0,0.05435099]
[1731272207007,0.25265,79161.0,79152.0,0.01893975]
[1731272207008,0.00142717,79153.0,79152.0,0.01893975]
[1731272207116,0.126337,79153.0,79152.0,0.01893975]
[1731272207316,0.126336,79154.0,79151.0,0.18939753]
[1731272207527,0.05569612,79153.0,79152.0,0.02552776]
[1731272208054,0.05569612,79154.0,79152.0,0.02552776]
[1731272208259,0.18203312,79153.0,79152.0,0.02552776]
[1731272208464,0.26399652,79153.0,79152.0,0.02552776]
[1731272208666,0.26542369,79153.0,79152.0,0.02552776]
[1731272209162,0.35722602,79153.0,79152.0,0.02552776]
[1731272209548,0.26399652,79153.0,79152.0,0.02552776]
[1731272210614,0.34157209,79153.0,79152.0,0.02552776]
[1731272210821,0.34157209,79153.0,79142.0,0.000838]
[1731272210822,0.126353,79143.0,79142.0,0.000838]
[1731272211024,0.26401252,79143.0,79142.0,0.000838]
[1731272211227,0.26543969,79143.0,79142.0,0.000838]
[1731272211452,0.26401252,79143.0,79142.0,0.000838]
[1731272211638,0.26543969,79143.0,79142.0,0.000838]
[1731272211850,0.26543969,79143.0,79128.0,0.05094423]
[1731272211851,0.126356,79142.0,79133.0,0.10252482]
[1731272212040,0.07457904,79135.0,79134.0,0.12594221]
[1731272212245,0.13765952,79135.0,79134.0,0.12594221]
[1731272212445,0.126368,79134.0,79125.0,0.252762]
[1731272212646,0.05592413,79131.0,79128.0,0.12594221]
[1731272212889,0.05592413,79131.0,79130.0,0.126374]
[1731272213042,0.05592413,79131.0,79130.0,0.12594221]
[1731272213415,0.20093551,79133.0,79130.0,0.12594221]
[1731272213779,0.126372,79131.0,79130.0,0.12594221]
[1731272214089,0.13760379,79131.0,79130.0,0.12594221]
[1731272214286,0.13760379,79131.0,79130.0,0.15115381]
[1731272214532,0.05591084,79131.0,79130.0,0.15115381]
[1731272214704,0.07456551,79134.0,79130.0,0.15115381]
[1731272214933,0.21215978,79133.0,79130.0,0.15115381]
[1731272215153,0.13759427,79132.0,79130.0,0.15115381]
[1731272215354,0.05591191,79131.0,79130.0,0.15115381]
[1731272215718,0.05590848,79131.0,79130.0,0.15115381]
[1731272215916,0.13758276,79131.0,79130.0,0.15115381]
[1731272216124,0.07454465,79133.0,79130.0,0.15115381]
[1731272216315,0.05590646,79132.0,79130.0,0.15115381]
[1731272216638,0.05590646,79131.0,79130.0,0.15115381]
[1731272216860,0.05590646,79131.0,79130.0,0.0252116]
[1731272217008,0.005,79115.0,79098.0,0.001428]
[1731272217211,0.141398,79115.0,79102.0,0.18939753]
[1731272217415,0.26530342,79115.0,79110.0,0.02471166]
[1731272217601,0.27460771,79115.0,79110.0,0.02471166]
[1731272217824,0.26530342,79115.0,79110.0,0.02471166]
[1731272218023,0.26387625,79115.0,79110.0,0.02471166]
[1731272218227,0.35841291,79115.0,79110.0,0.02471166]
[1731272219047,0.26530342,79115.0,79110.0,0.02471166]
[1731272219435,0.33969849,79115.0,79110.0,0.02471166]
[1731272219640,0.26530342,79115.0,79110.0,0.02471166]
[1731272220190,0.26530342,79115.0,79102.0,0.18939753]
[1731272220346,0.26515616,79115.0,79102.0,0.18939753]
[1731272220937,0.33956095,79115.0,79102.0,0.18939753]
[1731272221136,0.33813378,79115.0,79102.0,0.18939753]
[1731272221337,0.252792,79117.0,79102.0,0.18939753]
[1731272221338,0.05578128,79117.0,79102.0,0.18939753]
[1731272221586,0.0371879,79116.0,79110.0,0.12893287]
[1731272221759,0.126394,79118.0,79115.0,0.01571508]
[1731272221959,0.252781,79120.0,79115.0,0.01571508]
[1731272222186,0.0371879,79122.0,79119.0,0.18939753]
[1731272222349,0.1635659,79128.0,79121.0,0.126388]
[1731272222549,0.0371879,79132.0,79122.0,0.17645423]
[1731272222755,0.0371879,79132.0,79123.0,0.18939753]
[1731272222976,0.126366,79136.0,79126.0,0.126379]
[1731272223183,0.00142717,79130.0,79127.0,0.17289389]
[1731272223392,0.252737,79134.0,79117.0,0.1]
[1731272223600,0.00142717,79128.0,79122.0,0.126386]
[1731272223985,0.00142717,79128.0,79123.0,0.12594221]
[1731272224184,0.00142717,79126.0,79102.0,0.44223453]
[1731272224417,0.23080453,79136.0,79109.0,0.127835]
[1731272224418,0.126395,79117.0,79109.0,0.127835]
[1731272224614,0.126385,79124.0,79119.0,0.18939753]
[1731272224813,0.00142717,79128.0,79109.0,0.001428]
[1731272224814,0.252761,79126.0,79109.0,0.001428]
[1731272224951,0.252761,79126.0,79116.0,0.02535794]
[1731272225154,0.03719313,79131.0,79116.0,0.04718624]
[1731272225387,0.03719313,79136.0,79118.0,0.18939753]
[1731272225594,0.03719313,79140.0,79120.0,0.25278]
[1731272225797,0.00142717,79140.0,79122.0,0.000838]
[1731272226061,0.126362,79138.0,79124.0,0.252767]
[1731272226211,0.00142717,79142.0,79131.0,0.023]
[1731272226417,0.005,79145.0,79131.0,0.023]
[1731272226418,0.00142717,79144.0,79131.0,0.023]
[1731272226627,0.04219313,79145.0,79131.0,0.023]
[1731272226628,0.00362717,79145.0,79131.0,0.023]
[1731272226828,0.126371,79132.0,79131.0,0.023]
[1731272227102,0.126371,79132.0,79127.0,0.023]
[1731272227215,0.126375,79130.0,79127.0,0.023]
[1731272227414,0.005,79141.0,79127.0,0.023]
[1731272227415,0.252723,79138.0,79127.0,0.023]
[1731272227659,0.126372,79131.0,79127.0,0.07587149]
[1731272227832,0.04219313,79141.0,79130.0,0.023]
[1731272228030,0.04219313,79141.0,79132.0,0.023]
[1731272228031,0.252719,79139.0,79132.0,0.023]
[1731272228239,0.005,79141.0,79131.0,0.00262013]
[1731272228650,0.126369,79133.0,79131.0,0.00262013]
[1731272229059,0.126371,79132.0,79131.0,0.00262013]
[1731272229272,0.126372,79131.0,79129.0,0.02503449]
[1731272229485,0.252737,79134.0,79129.0,0.02503449]
[1731272229688,0.252716,79140.0,79129.0,0.02503449]
[1731272229689,0.12637,79133.0,79129.0,0.02503449]
[1731272230202,0.252716,79140.0,79129.0,0.02503449]
[1731272230399,0.126371,79132.0,79129.0,0.02503449]
[1731272230845,0.252723,79138.0,79129.0,0.0718472]
[1731272230980,0.126366,79135.0,79129.0,0.1982212]
[1731272231187,0.126371,79132.0,79129.0,0.0718472]
[1731272231381,0.005,79141.0,79129.0,0.02503449]
[1731272231636,0.126371,79132.0,79129.0,0.02503449]
[1731272231994,0.252716,79140.0,79131.0,0.126371]
[1731272232199,0.257714,79141.0,79132.0,0.07195042]
[1731272232395,0.257714,79141.0,79129.0,0.15140949]
[1731272232396,0.252719,79139.0,79129.0,0.15140949]
[1731272232617,0.12637,79133.0,79129.0,0.02503449]
[1731272232845,0.252719,79139.0,79129.0,0.15140949]
[1731272233057,0.23351376,79194.0,79129.0,0.15140949]
[1731272233058,0.03718253,79146.0,79143.0,0.126352]
[1731272233352,0.07936506,79152.0,79144.0,0.13857741]
[1731272233353,0.00932133,79152.0,79144.0,0.13857741]
[1731272233495,0.001676,79153.0,79145.0,0.00252662]
[1731272233697,0.001676,79153.0,79144.0,0.12594221]
[1731272233698,0.126343,79150.0,79144.0,0.12594221]
[1731272233893,0.126343,79150.0,79144.0,0.25229321]
[1731272234123,0.001676,79153.0,79145.0,0.0506379]
[1731272234352,0.12634,79152.0,79146.0,0.12887356]
[1731272234555,0.126341,79151.0,79149.0,0.02520317]
[1731272234758,0.001676,79153.0,79149.0,0.02520317]
[1731272234957,0.001676,79153.0,79152.0,0.126339]
[1731272235190,0.001676,79153.0,79152.0,0.1288653]
[1731272235374,0.001676,79153.0,79152.0,0.126339]
[1731272235614,0.001676,79153.0,79152.0,0.27780752]
[1731272235753,0.001676,79153.0,79152.0,0.27528121]
[1731272236086,0.001676,79153.0,79152.0,0.35600423]
[1731272236290,0.001676,79153.0,79152.0,0.33300423]
[1731272237047,0.001676,79153.0,79152.0,0.12594221]
[1731272237572,0.001676,79153.0,79152.0,0.25228121]
[1731272237969,0.001676,79153.0,79149.0,0.02520317]
[1731272238859,0.126341,79151.0,79149.0,0.02520317]
[1731272239057,0.001676,79153.0,79149.0,0.02520317]
[1731272239259,0.001676,79153.0,79149.0,0.08470482]
[1731272239460,0.128014,79153.0,79149.0,0.08470482]
[1731272239895,0.128014,79153.0,79150.0,0.126341]
[1731272239896,0.001676,79153.0,79150.0,0.126341]
[1731272240088,0.001676,79153.0,79152.0,0.126339]
[1731272240392,0.001676,79153.0,79152.0,0.27665404]
[1731272240541,0.001676,79168.0,79167.0,0.126315]
[1731272240751,0.001676,79168.0,79167.0,0.27525721]
[1731272240914,0.001676,79168.0,79167.0,0.35344891]
[1731272241114,0.001676,79168.0,79167.0,0.35482174]
[1731272243275,0.001676,79168.0,79167.0,0.40723281]
[1731272243605,0.001676,79168.0,79167.0,0.4319828]
[1731272245574,0.001676,79168.0,79167.0,0.3000072]
[1731272245917,0.001676,79168.0,79167.0,0.15106499]
[1731272246119,0.001676,79168.0,79167.0,0.02474999]
[1731272246120,0.33289,79168.0,79167.0,0.02474999]
[1731272246282,0.33289,79168.0,79157.0,0.126331]
[1731272246283,0.126319,79165.0,79157.0,0.126331]
[1731272246483,0.252634,79166.0,79157.0,0.12594221]
[1731272246484,0.07741233,79164.0,79157.0,0.12594221]
[1731272246732,0.07741233,79164.0,79155.0,0.18939753]
[1731272246733,0.20373233,79164.0,79163.0,0.0249015]
[1731272248322,0.24095652,79164.0,79163.0,0.0249015]
[1731272248544,0.24100747,79164.0,79163.0,0.0249015]
[1731272248746,0.20373233,79164.0,79163.0,0.0249015]
[1731272248946,0.252643,79163.0,79156.0,0.18939753]
[1731272249215,0.126331,79157.0,79156.0,0.2144316]
[1731272249379,0.04727389,79160.0,79137.0,0.44212353]
[1731272249581,0.04727389,79160.0,79137.0,0.49338828]
[1731272249582,0.252672,79154.0,79137.0,0.49338828]
[1731272249785,0.126345,79148.0,79140.0,0.126357]
[1731272249986,0.252675,79153.0,79138.0,0.00137283]
[1731272250152,0.03727389,79155.0,79137.0,0.18939753]
[1731272250362,0.03727389,79155.0,79138.0,0.25230221]
[1731272250671,0.126352,79144.0,79138.0,0.12594221]
[1731272250884,0.0559049,79154.0,79138.0,0.12594221]
[1731272250885,0.03726993,79151.0,79138.0,0.12594221]
[1731272251084,0.126352,79144.0,79143.0,0.02526639]
[1731272251875,0.16362193,79144.0,79143.0,0.02526639]
[1731272252375,0.126368,79134.0,79132.0,0.000838]
[1731272252608,0.126356,79141.0,79140.0,0.18939753]
[1731272252802,0.126356,79141.0,79132.0,0.127208]
[1731272253004,0.03726834,79143.0,79132.0,0.000838]
[1731272253205,0.027746,79142.0,79132.0,0.000838]
[1731272253426,0.631782,79141.0,79132.0,0.000838]
[1731272253626,0.027746,79142.0,79132.0,0.000838]
[1731272253884,0.3608007,79133.0,79132.0,0.000838]
[1731272254277,0.3608007,79133.0,79119.0,0.18939753]
[1731272254278,0.14001217,79123.0,79119.0,0.18939753]
[1731272254475,0.39495438,79123.0,79119.0,0.18939753]
[1731272254815,0.7626182,79123.0,79111.0,0.18939753]
[1731272255147,0.8626182,79123.0,79111.0,0.18939753]
[1731272255353,0.14002517,79115.0,79112.0,0.18939753]
[1731272255558,0.62425996,79115.0,79112.0,0.18939753]
[1731272255778,0.64753948,79115.0,79109.0,0.001428]
[1731272255977,0.65686079,79115.0,79109.0,0.001428]
[1731272257427,0.4031232,79115.0,79109.0,0.001428]
[1731272257540,0.19583367,79115.0,79109.0,0.001428]
[1731272257754,0.19583449,79115.0,79109.0,0.001428]
[1731272257968,0.27736617,79115.0,79109.0,0.001428]
[1731272258172,0.14002517,79115.0,79109.0,0.001428]
[1731272258396,0.19582836,79115.0,79109.0,0.001428]
[1731272258620,0.14002517,79115.0,79109.0,0.001428]
[1731272258856,0.19582836,79115.0,79109.0,0.001428]
[1731272259203,0.14002517,79115.0,79109.0,0.001428]
[1731272259403,0.17721563,79115.0,79109.0,0.001428]
[1731272259715,0.14002517,79115.0,79109.0,0.001428]
[1731272259923,0.16858912,79115.0,79109.0,0.001428]
[1731272260107,0.13002517,79115.0,79109.0,0.001428]
[1731272260734,0.131395,79117.0,79109.0,0.001428]
[1731272261024,0.13002517,79115.0,79109.0,0.001428]
[1731272261160,0.00362717,79115.0,79109.0,0.001428]
[1731272261364,0.00362717,79115.0,79100.0,0.27829404]
[1731272261365,0.03719112,79124.0,79103.0,0.023]
[1731272261575,0.03719112,79132.0,79131.0,0.126372]
[1731272261774,0.126385,79123.0,79115.0,0.126397]
[1731272261975,0.005,79130.0,79116.0,0.31533974]
[1731272262177,0.005,79127.0,79106.0,0.18939753]
[1731272262378,0.126395,79117.0,79116.0,0.02522901]
[1731272262822,0.252774,79122.0,79116.0,0.02522901]
[1731272262957,0.126399,79115.0,79114.0,0.02512801]
[1731272263183,0.252774,79122.0,79114.0,0.02512801]
[1731272263389,0.252777,79121.0,79114.0,0.02512801]
[1731272263647,0.126393,79118.0,79114.0,0.02596601]
[1731272264439,0.126391,79120.0,79114.0,0.02596601]
[1731272264641,0.00362717,79123.0,79115.0,0.126397]
[1731272264821,0.126384,79124.0,79116.0,0.126395]
[1731272265036,0.13001217,79123.0,79114.0,0.02596601]
[1731272265239,0.126387,79122.0,79114.0,0.02596601]
[1731272265570,0.00362717,79127.0,79115.0,0.12594221]
[1731272265770,0.13000217,79130.0,79116.0,0.31220418]
[1731272265932,0.131373,79131.0,79120.0,0.126388]
[1731272266131,0.005,79131.0,79121.0,0.00252737]
[1731272266600,0.00362717,79131.0,79123.0,0.126385]
[1731272266757,0.00362717,79134.0,79123.0,0.12594221]
[1731272267125,0.257716,79140.0,79132.0,0.12637]
[1731272267126,0.005,79140.0,79132.0,0.12637]
[1731272267326,0.00862717,79145.0,79133.0,0.00252704]
[1731272267526,0.126357,79141.0,79132.0,0.126371]
[1731272267727,0.126353,79144.0,79133.0,0.00252703]
[1731272267927,0.005,79142.0,79133.0,0.00252703]
[1731272268378,0.131355,79142.0,79134.0,0.126367]
[1731272269201,0.00362717,79145.0,79132.0,0.18939753]
[1731272269502,0.00362717,79145.0,79135.0,0.12594221]
[1731272269703,0.126362,79138.0,79135.0,0.12594221]
[1731272269903,0.00362717,79145.0,79135.0,0.12594221]
[1731272270047,0.126355,79142.0,79135.0,0.12594221]
[1731272270252,0.126351,79145.0,79135.0,0.12594221]
[1731272270496,0.12997817,79145.0,79135.0,0.12594221]
[1731272270719,0.126352,79144.0,79137.0,0.126362]
[1731272271129,0.126352,79144.0,79139.0,0.18939753]
[1731272271282,0.03725806,79150.0,79141.0,0.22080453]
[1731272271486,0.07451613,79155.0,79141.0,0.22080453]
[1731272271487,0.03725806,79155.0,79152.0,0.126339]
[1731272271704,0.001676,79157.0,79152.0,0.126339]
[1731272272544,0.001676,79157.0,79148.0,0.252688]
[1731272272744,0.001676,79157.0,79152.0,0.126339]
[1731272272968,0.001676,79157.0,79141.0,0.30473867]
[1731272273152,0.001676,79157.0,79149.0,0.126343]
[1731272273153,0.128007,79157.0,79149.0,0.126343]
[1731272273700,0.126336,79154.0,79144.0,0.12594221]
[1731272273946,0.001676,79157.0,79141.0,0.05202767]
[1731272273947,0.636695,79152.0,79141.0,0.05202767]
[1731272274167,0.126347,79147.0,79142.0,0.18939753]
[1731272274717,0.126347,79147.0,79142.0,0.22097298]
[1731272274945,0.005,79149.0,79129.0,0.00137283]
[1731272275145,0.126347,79147.0,79139.0,0.126359]
[1731272276356,0.126347,79147.0,79146.0,0.02498753]
[1731272277643,0.005,79149.0,79146.0,0.02498753]
[1731272278367,0.005,79149.0,79147.0,0.126347]
[1731272278566,0.005,79149.0,79146.0,0.02751425]
[1731272278773,0.005,79149.0,79146.0,0.15386225]
[1731272279024,0.005,79149.0,79146.0,0.02751425]
[1731272279232,0.001676,79153.0,79152.0,0.126339]
[1731272279884,0.001676,79153.0,79149.0,0.252687]
[1731272280073,0.001676,79153.0,79151.0,0.126339]
[1731272280284,0.126347,79147.0,79146.0,0.02498753]
[1731272280737,0.131347,79147.0,79146.0,0.02498753]
[1731272281347,0.126343,79150.0,79146.0,0.02498753]
[1731272281546,0.006676,79153.0,79152.0,0.126339]
[1731272281547,0.001676,79153.0,79152.0,0.126339]
[1731272281814,0.001676,79153.0,79150.0,0.19859771]
[1731272282092,0.001676,79153.0,79152.0,0.126339]
[1731272282838,0.001676,79153.0,79139.0,0.252719]
[1731272282839,0.001676,79153.0,79149.0,0.126343]
[1731272283084,0.001676,79153.0,79150.0,0.126341]
[1731272283283,0.001676,79153.0,79139.0,0.252719]
[1731272283485,0.001676,79153.0,79147.0,0.12594221]
[1731272283691,0.001676,79153.0,79151.0,0.126339]
[1731272283891,0.001676,79153.0,79139.0,0.252719]
[1731272284065,0.126343,79150.0,79143.0,0.126352]
[1731272284265,0.09401378,79149.0,79143.0,0.126352]
[1731272284504,0.09401378,79149.0,79143.0,0.252705]
[1731272284823,0.09401378,79149.0,79069.0,0.06340396]
[1731272284824,0.005,79123.0,79114.0,0.19023553]
[1731272285113,0.131385,79123.0,79122.0,0.18939753]
[1731272285410,0.126394,79118.0,79114.0,0.19023553]
[1731272285612,0.09417683,79117.0,79114.0,0.19023553]
[1731272285839,0.126398,79115.0,79114.0,0.19023553]
[1731272286049,0.0986079,79115.0,79114.0,0.000838]
[1731272286233,0.2250059,79115.0,79114.0,0.0258184]
[1731272286662,0.2350059,79115.0,79114.0,0.000838]
[1731272286798,0.36457528,79115.0,79114.0,0.000838]
[1731272287702,0.41417528,79115.0,79114.0,0.000838]
[1731272287829,0.42351162,79115.0,79114.0,0.000838]
[1731272288372,0.29756941,79115.0,79114.0,0.000838]
[1731272288585,0.49448842,79115.0,79114.0,0.000838]
[1731272288741,0.50382774,79115.0,79114.0,0.000838]
[1731272288946,0.4235146,79115.0,79114.0,0.000838]
[1731272290712,0.4465146,79115.0,79114.0,0.000838]
[1731272291074,0.4235146,79115.0,79114.0,0.000838]
[1731272291884,0.4608167,79115.0,79114.0,0.000838]
[1731272292288,0.4235146,79115.0,79114.0,0.000838]
[1731272293721,0.29757239,79115.0,79114.0,0.000838]